fUSD/lending_fUSD_20260611
["ID","MTS","AMOUNT","RATE_DAILY","PERIOD"]
[424826930,1781189440000,-500.0,0.00013882,2]
[424826935,1781189440000,-500.0,0.00013882,2]
[424826936,1781189440000,-500.0,0.00013882,2]
[424826937,1781189440000,-500.0,0.00013882,2]
[424826917,1781189440000,-500.0,0.00013882,2]
[424826942,1781189440000,-500.0,0.00013882,2]
[424826923,1781189440000,-500.0,0.00013882,2]
[424826912,1781189440000,-500.0,0.00013882,2]
[424826901,1781189440000,-500.0,0.00013882,2]
[424826918,1781189440000,-500.0,0.00013882,2]
[424826940,1781189440000,-500.0,0.00013882,2]
[424826898,1781189440000,-500.0,0.00013882,2]
[424826896,1781189440000,-500.0,0.00013882,2]
[424826894,1781189440000,-500.0,0.00013882,2]
[424826895,1781189440000,-500.0,0.00013882,2]
[424826899,1781189440000,-500.0,0.00013882,2]
[424826893,1781189440000,-500.0,0.00013882,2]
[424826892,1781189440000,-500.0,0.00013882,2]
[424826897,1781189440000,-500.0,0.00013882,2]
[424826911,1781189440000,-500.0,0.00013882,2]
[424826919,1781189440000,-500.0,0.00013882,2]
[424826900,1781189440000,-500.0,0.00013882,2]
[424826903,1781189440000,-500.0,0.00013882,2]
[424826905,1781189440000,-500.0,0.00013882,2]
[424826908,1781189440000,-500.0,0.00013882,2]
[424826904,1781189440000,-500.0,0.00013882,2]
[424826907,1781189440000,-500.0,0.00013882,2]
[424826906,1781189440000,-500.0,0.00013882,2]
[424826910,1781189440000,-500.0,0.00013882,2]
[424826909,1781189440000,-500.0,0.00013882,2]
[424826915,1781189440000,-500.0,0.00013882,2]
[424826914,1781189440000,-500.0,0.00013882,2]
[424826902,1781189440000,-500.0,0.00013882,2]
[424826946,1781189440000,-500.0,0.00013882,2]
[424826944,1781189440000,-500.0,0.00013882,2]
[424826979,1781189440000,-686.22,0.00013883,2]
[424826969,1781189440000,-500.0,0.00013883,2]
[424826970,1781189440000,-500.0,0.00013883,2]
[424826971,1781189440000,-500.0,0.00013883,2]
[424826972,1781189440000,-500.0,0.00013883,2]
[424826976,1781189440000,-686.22,0.00013883,2]
[424826975,1781189440000,-686.22,0.00013883,2]
[424826977,1781189440000,-686.22,0.00013883,2]
[424826974,1781189440000,-150.0,0.00013883,2]
[424826978,1781189440000,-686.22,0.00013883,2]
[424826980,1781189440000,-686.22,0.00013883,2]
[424826968,1781189440000,-500.0,0.00013883,2]
[424826988,1781189440000,-500.0,0.00013883,2]
[424826983,1781189440000,-500.0,0.00013883,2]
[424826981,1781189440000,-686.22,0.00013883,2]
[424826982,1781189440000,-500.0,0.00013883,2]
[424826986,1781189440000,-500.0,0.00013883,2]
[424826984,1781189440000,-500.0,0.00013883,2]
[424826987,1781189440000,-500.0,0.00013883,2]
[424826991,1781189440000,-500.0,0.00013883,2]
[424826989,1781189440000,-500.0,0.00013883,2]
[424826945,1781189440000,-500.0,0.00013882,2]
[424826990,1781189440000,-500.0,0.00013883,2]
[424826985,1781189440000,-500.0,0.00013883,2]
[424826967,1781189440000,-561.81,0.00013883,2]
[424826973,1781189440000,-500.0,0.00013883,2]
[424826965,1781189440000,-561.81,0.00013883,2]
[424826941,1781189440000,-500.0,0.00013882,2]
[424826939,1781189440000,-500.0,0.00013882,2]
[424826938,1781189440000,-500.0,0.00013882,2]
[424826943,1781189440000,-500.0,0.00013882,2]
[424826948,1781189440000,-500.0,0.00013882,2]
[424826958,1781189440000,-500.0,0.00013883,2]
[424826947,1781189440000,-500.0,0.00013882,2]
[424826960,1781189440000,-500.0,0.00013883,2]
[424826949,1781189440000,-504.25668169,0.00013883,2]
[424826951,1781189440000,-500.0,0.00013883,2]
[424826953,1781189440000,-500.0,0.00013883,2]
[424826952,1781189440000,-500.0,0.00013883,2]
[424826950,1781189440000,-500.0,0.00013883,2]
[424826955,1781189440000,-220.15184904,0.00013883,2]
[424826954,1781189440000,-500.0,0.00013883,2]
[424826957,1781189440000,-500.0,0.00013883,2]
[424826956,1781189440000,-500.0,0.00013883,2]
[424826959,1781189440000,-500.0,0.00013883,2]
[424826961,1781189440000,-500.0,0.00013883,2]
[424826962,1781189440000,-561.81,0.00013883,2]
[424826964,1781189440000,-561.81,0.00013883,2]
[424826963,1781189440000,-561.81,0.00013883,2]
[424826966,1781189440000,-561.81,0.00013883,2]
[424827028,1781189441000,-2000.0,0.00014037,2]
[424827027,1781189441000,-2539.89407136,0.00014032,2]
[424827029,1781189441000,-500.0,0.00014037,2]
[424827030,1781189441000,-150.0,0.0001404,2]
[424827024,1781189441000,-598.74878545,0.00014028,2]
[424827025,1781189441000,-567.82438029,0.00014028,2]
[424827026,1781189441000,-820.76710747,0.0001403,2]
[424827022,1781189441000,-150.0,0.00014027,2]
[424827031,1781189441000,-150.0,0.00014043,2]
[424827032,1781189441000,-150.0,0.00014059,2]
[424827023,1781189441000,-557.16080543,0.00014028,2]
[424827034,1781189441000,-150.0,0.0001407,2]
[424827053,1781189441000,-150.0,0.00014201,2]
[424827035,1781189441000,-166.66,0.00014076,2]
[424827038,1781189441000,-150.0,0.00014094,2]
[424827042,1781189441000,-150.0,0.0001413,2]
[424827033,1781189441000,-150.0,0.0001406,2]
[424827039,1781189441000,-150.0,0.00014111,2]
[424827043,1781189441000,-150.0,0.00014144,2]
[424827037,1781189441000,-150.0,0.00014087,2]
[424827041,1781189441000,-150.0,0.00014128,2]
[424827040,1781189441000,-150.0,0.00014119,2]
[424827055,1781189441000,-150.0,0.00014212,2]
[424827044,1781189441000,-150.0,0.00014147,2]
[424827021,1781189441000,-150.0,0.00014027,2]
[424827036,1781189441000,-150.0,0.00014077,2]
[424827020,1781189441000,-150.0,0.0001401,2]
[424826995,1781189441000,-500.0,0.00013883,2]
[424827018,1781189441000,-150.0,0.00013993,2]
[424826993,1781189441000,-500.0,0.00013883,2]
[424826994,1781189441000,-500.0,0.00013883,2]
[424826992,1781189441000,-2000.0,0.00013883,2]
[424826999,1781189441000,-250.0,0.00013883,2]
[424826997,1781189441000,-500.0,0.00013883,2]
[424826996,1781189441000,-500.0,0.00013883,2]
[424826998,1781189441000,-500.0,0.00013883,2]
[424827000,1781189441000,-1500000.0,0.00013883,2]
[424827002,1781189441000,-150.0,0.00013892,2]
[424827001,1781189441000,-2539.89407136,0.00013887,2]
[424827004,1781189441000,-150.0,0.00013904,2]
[424827003,1781189441000,-26500.0,0.000139,5]
[424827005,1781189441000,-820.76710747,0.00013906,2]
[424827007,1781189441000,-150.0,0.00013909,2]
[424827006,1781189441000,-150.0,0.00013907,2]
[424827009,1781189441000,-150.0,0.00013925,2]
[424827008,1781189441000,-150.0,0.00013916,2]
[424827010,1781189441000,-150.0,0.00013942,2]
[424827011,1781189441000,-150.0,0.00013959,2]
[424827013,1781189441000,-150.0,0.00013967,2]
[424827012,1781189441000,-150.0,0.00013961,2]
[424827016,1781189441000,-150.0,0.00013987,2]
[424827014,1781189441000,-150.0,0.00013976,2]
[424827015,1781189441000,-150.0,0.00013987,2]
[424827019,1781189441000,-250.0,0.00014,2]
[424827017,1781189441000,-27078.44697467,0.0001399,2]
[424827054,1781189441000,-150.0,0.00014207,2]
[424827098,1781189441000,-150.0,0.00014507,2]
[424827049,1781189441000,-150.0,0.00014178,2]
[424827080,1781189441000,-150.0,0.0001438,2]
[424827084,1781189441000,-820.76710747,0.00014403,2]
[424827082,1781189441000,-150.0,0.00014397,2]
[424827083,1781189441000,-500.0,0.00014399,2]
[424827089,1781189441000,-150.0,0.00014434,2]
[424827091,1781189441000,-150.0,0.00014447,2]
[424827092,1781189441000,-150.0,0.00014464,2]
[424827081,1781189441000,-150.0,0.00014387,2]
[424827085,1781189441000,-150.0,0.00014404,2]
[424827087,1781189441000,-150.0,0.00014415,2]
[424827090,1781189441000,-150.0,0.00014447,2]
[424827086,1781189441000,-150.0,0.00014414,2]
[424827094,1781189441000,-150.0,0.00014481,2]
[424827097,1781189441000,-150.0,0.00014498,2]
[424827102,1781189441000,-820.76710747,0.00014527,2]
[424827096,1781189441000,-150.0,0.00014487,2]
[424827099,1781189441000,-166.66,0.00014512,2]
[424827093,1781189441000,-2539.89407136,0.00014466,2]
[424827101,1781189441000,-150.0,0.00014515,2]
[424827100,1781189441000,-150.0,0.00014513,2]
[424827103,1781189441000,-150.0,0.00014532,2]
[424827104,1781189441000,-150.0,0.00014548,2]
[424827095,1781189441000,-150.0,0.00014487,2]
[424827105,1781189441000,-150.0,0.00014558,2]
[424827045,1781189441000,-150.0,0.00014154,2]
[424827074,1781189441000,-381.95853578,0.00014344,2]
[424827078,1781189441000,-426.84,0.00014356,2]
[424827088,1781189441000,-150.0,0.00014431,2]
[424827076,1781189441000,-150.0,0.00014346,2]
[424827077,1781189441000,-150.0,0.00014355,2]
[424827047,1781189441000,-150.0,0.00014161,2]
[424827051,1781189441000,-150.0,0.00014195,2]
[424827048,1781189441000,-2539.89407136,0.00014177,2]
[424827050,1781189441000,-1555.5,0.00014185,2]
[424827052,1781189441000,-150.0,0.00014198,2]
[424827057,1781189441000,-150.0,0.00014237,2]
[424827060,1781189441000,-150.0,0.00014245,2]
[424827056,1781189441000,-150.0,0.00014229,2]
[424827058,1781189441000,-150.0,0.00014237,2]
[424827059,1781189441000,-150.0,0.00014237,2]
[424827062,1781189441000,-150.0,0.00014267,2]
[424827063,1781189441000,-150.0,0.00014273,2]
[424827046,1781189441000,-820.76710747,0.00014155,2]
[424827064,1781189441000,-150.0,0.00014276,2]
[424827061,1781189441000,-150.0,0.00014262,2]
[424827075,1781189441000,-150.0,0.00014344,2]
[424827073,1781189441000,-150.0,0.0001433,2]
[424827070,1781189441000,-150.0,0.0001432,2]
[424827079,1781189441000,-150.0,0.00014363,2]
[424827071,1781189441000,-2539.89407136,0.00014321,2]
[424827072,1781189441000,-150.0,0.00014327,2]
[424827069,1781189441000,-150.0,0.00014313,2]
[424827065,1781189441000,-820.76710747,0.00014279,2]
[424827067,1781189441000,-150.0,0.00014296,2]
[424827066,1781189441000,-150.0,0.00014279,2]
[424827068,1781189441000,-4108.632263,0.00014298,2]
[424827152,1781189442000,-2539.89407136,0.00014611,2]
[424827156,1781189442000,-150.0,0.00014629,2]
[424827151,1781189442000,-35300.0,0.000146,5]
[424827144,1781189442000,-632.16,0.00014574,2]
[424827148,1781189442000,-561.81,0.00014599,2]
[424827149,1781189442000,-231.12456704,0.00014599,2]
[424827145,1781189442000,-150.0,0.00014582,2]
[424827146,1781189442000,-150.0,0.00014592,2]
[424827142,1781189442000,-500.0,0.00014574,2]
[424827150,1781189442000,-150.0,0.00014599,2]
[424827147,1781189442000,-500.0,0.00014599,2]
[424827153,1781189442000,-150.0,0.00014612,2]
[424827163,1781189442000,-150.0,0.00014683,2]
[424827155,1781189442000,-150.0,0.00014627,2]
[424827166,1781189442000,-500.0,0.00014699,2]
[424827157,1781189442000,-150.0,0.00014633,2]
[424827168,1781189442000,-150.0,0.000147,2]
[424827167,1781189442000,-44200.0,0.000147,5]
[424827160,1781189442000,-150.0,0.00014653,2]
[424827158,1781189442000,-150.0,0.0001465,2]
[424827159,1781189442000,-820.76710747,0.00014652,2]
[424827161,1781189442000,-150.0,0.00014666,2]
[424827162,1781189442000,-150.0,0.00014671,2]
[424827165,1781189442000,-686.22,0.00014699,2]
[424827143,1781189442000,-500.0,0.00014574,2]
[424827154,1781189442000,-150.0,0.00014616,2]
[424827135,1781189442000,-500.0,0.00014574,2]
[424827164,1781189442000,-150.0,0.00014687,2]
[424827141,1781189442000,-500.0,0.00014574,2]
[424827111,1781189442000,-500.0,0.00014574,2]
[424827110,1781189442000,-500.0,0.00014574,2]
[424827107,1781189442000,-150.0,0.00014567,2]
[424827109,1781189442000,-500.0,0.00014574,2]
[424827108,1781189442000,-150.0,0.0001457,2]
[424827112,1781189442000,-500.0,0.00014574,2]
[424827106,1781189442000,-150.0,0.00014565,2]
[424827114,1781189442000,-500.0,0.00014574,2]
[424827113,1781189442000,-500.0,0.00014574,2]
[424827115,1781189442000,-500.0,0.00014574,2]
[424827117,1781189442000,-500.0,0.00014574,2]
[424827125,1781189442000,-2187.21,0.00014574,2]
[424827140,1781189442000,-500.0,0.00014574,2]
[424827127,1781189442000,-500.0,0.00014574,2]
[424827118,1781189442000,-500.0,0.00014574,2]
[424827126,1781189442000,-500.0,0.00014574,2]
[424827116,1781189442000,-500.0,0.00014574,2]
[424827121,1781189442000,-500.0,0.00014574,2]
[424827120,1781189442000,-500.0,0.00014574,2]
[424827122,1781189442000,-500.0,0.00014574,2]
[424827123,1781189442000,-2187.21,0.00014574,2]
[424827124,1781189442000,-2187.21,0.00014574,2]
[424827129,1781189442000,-500.0,0.00014574,2]
[424827132,1781189442000,-500.0,0.00014574,2]
[424827134,1781189442000,-500.0,0.00014574,2]
[424827138,1781189442000,-500.0,0.00014574,2]
[424827119,1781189442000,-500.0,0.00014574,2]
[424827169,1781189442000,-150.0,0.00014701,2]
[424827187,1781189442000,-150.0,0.00014784,2]
[424827178,1781189442000,-150.0,0.00014751,2]
[424827203,1781189442000,-2187.21,0.0001482,2]
[424827202,1781189442000,-500.0,0.0001482,2]
[424827205,1781189442000,-391.28,0.00014829,2]
[424827215,1781189442000,-5800.0,0.00014858,2]
[424827204,1781189442000,-5800.0,0.00014823,2]
[424827206,1781189442000,-150.0,0.00014829,2]
[424827208,1781189442000,-5800.0,0.00014832,2]
[424827207,1781189442000,-500.0,0.00014829,2]
[424827210,1781189442000,-5800.0,0.00014841,2]
[424827209,1781189442000,-150.0,0.00014835,2]
[424827214,1781189442000,-150.0,0.00014852,2]
[424827212,1781189442000,-150.0,0.00014844,2]
[424827213,1781189442000,-5800.0,0.00014849,2]
[424827216,1781189442000,-5800.0,0.00014866,2]
[424827218,1781189442000,-150.0,0.00014868,2]
[424827219,1781189442000,-150.0,0.00014871,2]
[424827220,1781189442000,-500.0,0.00014873,2]
[424827226,1781189442000,-150.0,0.00014885,2]
[424827225,1781189442000,-5800.0,0.00014883,2]
[424827223,1781189442000,-500.0,0.00014873,2]
[424827227,1781189442000,-500.0,0.0001489,2]
[424827217,1781189442000,-150.0,0.00014866,2]
[424827221,1781189442000,-500.0,0.00014873,2]
[424827224,1781189442000,-5800.0,0.00014874,2]
[424827172,1781189442000,-193.8,0.00014726,2]
[424827201,1781189442000,-500.0,0.0001482,2]
[424827200,1781189442000,-150.0,0.0001482,2]
[424827211,1781189442000,-165.90670939,0.00014843,2]
[424827196,1781189442000,-500.0,0.00014803,2]
[424827195,1781189442000,-500.0,0.00014803,2]
[424827173,1781189442000,-1613.0535,0.00014733,2]
[424827177,1781189442000,-150.0,0.0001475,2]
[424827171,1781189442000,-3295.567,0.00014726,2]
[424827180,1781189442000,-150.0,0.00014767,2]
[424827176,1781189442000,-150.0,0.00014747,2]
[424827179,1781189442000,-2539.89407136,0.00014755,2]
[424827174,1781189442000,-150.0,0.00014734,2]
[424827175,1781189442000,-150.0,0.00014737,2]
[424827182,1781189442000,-500.0,0.0001477,2]
[424827181,1781189442000,-500.0,0.0001477,2]
[424827184,1781189442000,-500.0,0.00014771,2]
[424827185,1781189442000,-150.0,0.00014772,2]
[424827170,1781189442000,-150.0,0.00014717,2]
[424827193,1781189442000,-500.0,0.00014803,2]
[424827183,1781189442000,-2187.21,0.0001477,2]
[424827199,1781189442000,-150.0,0.00014818,2]
[424827198,1781189442000,-5800.0,0.00014815,2]
[424827197,1781189442000,-150.0,0.00014806,2]
[424827192,1781189442000,-150.0,0.00014801,2]
[424827194,1781189442000,-500.0,0.00014803,2]
[424827189,1781189442000,-300.0,0.000148,2]
[424827190,1781189442000,-300.0,0.000148,3]
[424827188,1781189442000,-159.32,0.00014788,2]
[424827222,1781189442000,-500.0,0.00014873,2]
[424827186,1781189442000,-820.76710747,0.00014776,2]
[424827191,1781189442000,-8800.0,0.000148,5]
[424827266,1781189443000,-375.23,0.00014936,2]
[424827278,1781189443000,-166.66,0.00014948,2]
[424827269,1781189443000,-152.0,0.00014936,2]
[424827277,1781189443000,-375.23,0.0001494,2]
[424827264,1781189443000,-375.23,0.00014936,2]
[424827257,1781189443000,-375.23,0.00014931,2]
[424827258,1781189443000,-152.0,0.00014931,2]
[424827259,1781189443000,-152.0,0.00014931,2]
[424827260,1781189443000,-168.91634944,0.00014935,2]
[424827261,1781189443000,-150.0,0.00014936,2]
[424827265,1781189443000,-375.23,0.00014936,2]
[424827262,1781189443000,-375.23,0.00014936,2]
[424827268,1781189443000,-375.23,0.00014936,2]
[424827279,1781189443000,-150.0,0.00014953,2]
[424827276,1781189443000,-375.23,0.0001494,2]
[424827271,1781189443000,-152.0,0.00014936,2]
[424827273,1781189443000,-375.23,0.0001494,2]
[424827275,1781189443000,-375.23,0.0001494,2]
[424827287,1781189443000,-378.1732,0.0001497,2]
[424827289,1781189443000,-152.0,0.0001497,2]
[424827286,1781189443000,-378.1732,0.0001497,2]
[424827288,1781189443000,-378.1732,0.0001497,2]
[424827290,1781189443000,-152.0,0.0001497,2]
[424827281,1781189443000,-151.0,0.00014965,2]
[424827280,1781189443000,-378.1732,0.0001496,2]
[424827284,1781189443000,-378.1732,0.0001497,2]
[424827267,1781189443000,-375.23,0.00014936,2]
[424827256,1781189443000,-375.23,0.00014931,2]
[424827239,1781189443000,-820.76710747,0.000149,2]
[424827252,1781189443000,-375.23,0.00014931,2]
[424827282,1781189443000,-151.0,0.00014965,2]
[424827229,1781189443000,-2187.21,0.0001489,2]
[424827228,1781189443000,-500.0,0.0001489,2]
[424827230,1781189443000,-5800.0,0.00014891,2]
[424827233,1781189443000,-24697.50973962,0.000149,3]
[424827231,1781189443000,-664.63879781,0.000149,2]
[424827232,1781189443000,-2000.0,0.000149,2]
[424827234,1781189443000,-31561.261,0.000149,2]
[424827238,1781189443000,-8800.0,0.000149,5]
[424827236,1781189443000,-2539.89407136,0.000149,2]
[424827235,1781189443000,-5800.0,0.000149,2]
[424827237,1781189443000,-381.95853578,0.000149,2]
[424827255,1781189443000,-375.23,0.00014931,2]
[424827240,1781189443000,-1293.9276465,0.000149,2]
[424827249,1781189443000,-375.23,0.00014931,2]
[424827246,1781189443000,-150.0,0.00014919,2]
[424827248,1781189443000,-500.0,0.0001493,2]
[424827250,1781189443000,-375.23,0.00014931,2]
[424827244,1781189443000,-150.0,0.00014907,2]
[424827241,1781189443000,-849.93833608,0.000149,2]
[424827243,1781189443000,-150.0,0.00014903,2]
[424827245,1781189443000,-150.0,0.00014915,2]
[424827247,1781189443000,-150.0,0.00014926,2]
[424827253,1781189443000,-375.23,0.00014931,2]
[424827263,1781189443000,-375.23,0.00014936,2]
[424827254,1781189443000,-375.23,0.00014931,2]
[424827242,1781189443000,-150.0,0.00014902,2]
[424827285,1781189443000,-378.1732,0.0001497,2]
[424827251,1781189443000,-375.23,0.00014931,2]
[424827292,1781189443000,-152.0,0.00014975,2]
[424827322,1781189443000,-686.22,0.00014998,2]
[424827321,1781189443000,-561.81,0.00014998,2]
[424827326,1781189443000,-1488.29296832,0.00014999,5]
[424827324,1781189443000,-1488.29296832,0.00014999,5]
[424827327,1781189443000,-1488.29296832,0.00014999,5]
[424827329,1781189443000,-1488.29296832,0.00014999,5]
[424827347,1781189443000,-2187.21,0.00014999,2]
[424827328,1781189443000,-1488.29296832,0.00014999,5]
[424827334,1781189443000,-1488.29296832,0.00014999,5]
[424827330,1781189443000,-1488.29296832,0.00014999,5]
[424827331,1781189443000,-1488.29296832,0.00014999,5]
[424827332,1781189443000,-1488.29296832,0.00014999,5]
[424827333,1781189443000,-1488.29296827,0.00014999,5]
[424827336,1781189443000,-1488.29296832,0.00014999,5]
[424827338,1781189443000,-418.17837495,0.00014999,2]
[424827337,1781189443000,-185.2409854,0.00014999,2]
[424827335,1781189443000,-1488.29296832,0.00014999,5]
[424827340,1781189443000,-500.0,0.00014999,2]
[424827345,1781189443000,-2187.21,0.00014999,2]
[424827342,1781189443000,-270.13495302,0.00014999,2]
[424827349,1781189443000,-2187.35944383,0.00014999,2]
[424827348,1781189443000,-2187.21,0.00014999,2]
[424827346,1781189443000,-2187.21,0.00014999,2]
[424827344,1781189443000,-367.77338711,0.00014999,2]
[424827343,1781189443000,-500.0,0.00014999,2]
[424827341,1781189443000,-500.0,0.00014999,2]
[424827283,1781189443000,-150.0,0.00014969,2]
[424827323,1781189443000,-500.0,0.00014998,2]
[424827318,1781189443000,-500.0,0.00014998,2]
[424827339,1781189443000,-500.0,0.00014999,2]
[424827316,1781189443000,-500.0,0.00014998,2]
[424827291,1781189443000,-152.0,0.0001497,2]
[424827320,1781189443000,-500.0,0.00014998,2]
[424827294,1781189443000,-152.0,0.00014979,2]
[424827301,1781189443000,-208.1114482,0.00014986,2]
[424827302,1781189443000,-289.90717118,0.00014986,2]
[424827300,1781189443000,-6954.0,0.00014986,2]
[424827293,1781189443000,-152.0,0.00014975,2]
[424827296,1781189443000,-248.12091067,0.00014986,2]
[424827295,1781189443000,-279.86118902,0.00014986,2]
[424827297,1781189443000,-150.75812701,0.00014986,2]
[424827298,1781189443000,-210.0975545,0.00014986,2]
[424827304,1781189443000,-250.0,0.0001499,2]
[424827313,1781189443000,-500.0,0.00014998,2]
[424827303,1781189443000,-2000.0,0.0001499,2]
[424827299,1781189443000,-269.96297295,0.00014986,2]
[424827314,1781189443000,-275.16598363,0.00014998,2]
[424827325,1781189443000,-199.48738674,0.00014999,5]
[424827306,1781189443000,-152.0,0.00014995,2]
[424827315,1781189443000,-500.0,0.00014998,2]
[424827317,1781189443000,-2187.21,0.00014998,2]
[424827309,1781189443000,-152.0,0.00014995,2]
[424827311,1781189443000,-152.0,0.00014995,2]
[424827319,1781189443000,-531.14,0.00014998,2]
[424827308,1781189443000,-152.0,0.00014995,2]
[424827310,1781189443000,-152.0,0.00014995,2]
[424827312,1781189443000,-500.0,0.00014998,2]
[424827307,1781189443000,-152.0,0.00014995,2]
[424827305,1781189443000,-152.0,0.00014995,2]
[424827397,1781189444000,-500.0,0.00014999,2]
[424827390,1781189444000,-686.33379386,0.00014999,2]
[424827386,1781189444000,-686.22,0.00014999,2]
[424827388,1781189444000,-686.22,0.00014999,2]
[424827391,1781189444000,-500.0,0.00014999,2]
[424827389,1781189444000,-686.22,0.00014999,2]
[424827380,1781189444000,-686.22,0.00014999,2]
[424827384,1781189444000,-686.22,0.00014999,2]
[424827385,1781189444000,-686.22,0.00014999,2]
[424827393,1781189444000,-500.0,0.00014999,2]
[424827382,1781189444000,-686.22,0.00014999,2]
[424827387,1781189444000,-686.22,0.00014999,2]
[424827409,1781189444000,-500.0,0.00014999,2]
[424827398,1781189444000,-500.0,0.00014999,2]
[424827392,1781189444000,-542.16653509,0.00014999,2]
[424827394,1781189444000,-500.0,0.00014999,2]
[424827396,1781189444000,-500.0,0.00014999,2]
[424827400,1781189444000,-500.0,0.00014999,2]
[424827410,1781189444000,-500.0,0.00014999,2]
[424827399,1781189444000,-500.0,0.00014999,2]
[424827401,1781189444000,-500.0,0.00014999,2]
[424827402,1781189444000,-500.0,0.00014999,2]
[424827403,1781189444000,-500.0,0.00014999,2]
[424827407,1781189444000,-500.0,0.00014999,2]
[424827404,1781189444000,-500.0,0.00014999,2]
[424827383,1781189444000,-686.22,0.00014999,2]
[424827395,1781189444000,-500.0,0.00014999,2]
[424827381,1781189444000,-686.22,0.00014999,2]
[424827350,1781189444000,-500.0,0.00014999,2]
[424827378,1781189444000,-686.22,0.00014999,2]
[424827405,1781189444000,-500.0,0.00014999,2]
[424827351,1781189444000,-500.0,0.00014999,2]
[424827361,1781189444000,-561.81,0.00014999,2]
[424827362,1781189444000,-561.81,0.00014999,2]
[424827352,1781189444000,-500.0,0.00014999,2]
[424827358,1781189444000,-500.0,0.00014999,2]
[424827355,1781189444000,-500.0,0.00014999,2]
[424827354,1781189444000,-500.0,0.00014999,2]
[424827357,1781189444000,-500.0,0.00014999,2]
[424827360,1781189444000,-541.25808991,0.00014999,2]
[424827353,1781189444000,-500.0,0.00014999,2]
[424827359,1781189444000,-500.0,0.00014999,2]
[424827356,1781189444000,-500.0,0.00014999,2]
[424827379,1781189444000,-686.22,0.00014999,2]
[424827365,1781189444000,-561.81,0.00014999,2]
[424827364,1781189444000,-561.81,0.00014999,2]
[424827372,1781189444000,-561.81,0.00014999,2]
[424827366,1781189444000,-561.81,0.00014999,2]
[424827367,1781189444000,-561.81,0.00014999,2]
[424827374,1781189444000,-561.81,0.00014999,2]
[424827368,1781189444000,-561.81,0.00014999,2]
[424827369,1781189444000,-561.81,0.00014999,2]
[424827370,1781189444000,-561.81,0.00014999,2]
[424827373,1781189444000,-561.81,0.00014999,2]
[424827371,1781189444000,-561.81,0.00014999,2]
[424827376,1781189444000,-686.22,0.00014999,2]
[424827375,1781189444000,-561.84626089,0.00014999,2]
[424827377,1781189444000,-686.22,0.00014999,2]
[424827363,1781189444000,-561.81,0.00014999,2]
[424827408,1781189444000,-500.0,0.00014999,2]
[424827431,1781189444000,-500.0,0.00014999,2]
[424827411,1781189444000,-500.0,0.00014999,2]
[424827444,1781189444000,-500.0,0.00014999,2]
[424827446,1781189444000,-500.0,0.00014999,2]
[424827447,1781189444000,-500.0,0.00014999,2]
[424827406,1781189444000,-500.0,0.00014999,2]
[424827449,1781189444000,-500.0,0.00014999,2]